{"text_format":"1","workbook":"xlsx","n_sheets":5,"sheets":["Contents","Introduction ISTEXT","ISNONTEXT","Number Store as Text","IF-ISTEXT"],"not_rendered":{"charts":0,"images":2,"macros":1,"external_links":0,"defined_names":0,"comments":0,"pivot_tables":0},"unopened":[],"bounds":{"document_bytes":16777216,"sheet_cells":100000,"rows_first":2000,"rows_last":500,"rows_between":2000,"halvings":0,"cell_chars":16384,"cell_head_chars":4096},"cells_cut":0,"cells_raw":0,"read":"whole","date_system":"1900"}

{"sheet":"Contents","index":0,"n_rows":47,"n_cols":6,"rows_kept":47,"cut":false,"hidden":false,"merged":[]}
["ISNONTEXT Function"]
[null,"automateexcel.com/functions/isnontext-formula-excel"]
[]
[null,"Table of Contents",null,null,null,"Other Resources"]
[null,"Introduction ISTEXT",null,null,null,"Excel Formulas w/Examples"]
[null,"ISNONTEXT",null,null,null,"Excel Boot Camp - Learn Excel inside Excel"]
[null,"Number Store as Text",null,null,null,"Excel Functions & Formulas Tutorial"]
[null,"IF-ISTEXT"]
[]
[]
[]
[]
[null,"Excel Boot Camp"]
[null,"  Learn Excel Inside Excel"]
[]
[]
[]
[]
[]
[]
[]
[]
[]
[]
[]
[]
[]
[]
[]
[]
[]
[]
[]
[]
[]
[]
[null,"           Learn Excel inside Excel with our Interactive Tutorial"]
[null,"           Automatically Graded Exercises"]
[null,"           Shortcuts & Best Practices \"Work Smarter, not Harder\""]
[]
[]
[]
[]
[]
[]
[]
[null,"Course Contents"]

{"sheet":"Introduction ISTEXT","index":1,"n_rows":15,"n_cols":4,"rows_kept":15,"cut":false,"hidden":false,"merged":[]}
[]
[null,"ISNONTEXT ",null,"=ISNONTEXT (value)"]
[null,"The Excel ISNONTEXT function returns TRUE for any non-text value. "]
[]
[null,"DATA","Result","Content _Column B"]
[null,{"$f":"TODAY()","v":"2021-08-31"},{"$f":"ISNONTEXT(B6)","v":true},"=TODAY()"]
[null,150,true,150]
[null,"150",false,"'150"]
[null,"ABC",false,"ABC"]
[null,false,true,false]
[null,{"$f":"NOW()","v":44439.89375289352},true,"=NOW()"]
[]
[null,"automateexcel.com/functions/isnontext-formula-excel"]
[]
[null,"Excel Boot Camp - Learn Excel Inside Excel"]

{"sheet":"ISNONTEXT","index":2,"n_rows":11,"n_cols":3,"rows_kept":11,"cut":false,"hidden":false,"merged":[]}
["DATA","Result","Content _Column A"]
[{"$f":"TODAY()","v":"2021-08-31"},{"$f":"ISNONTEXT(A2)","v":true},"=TODAY()"]
[150,true,150]
["150",false,"'150"]
["ABC",false,"ABC"]
[false,true,false]
[{"$f":"NOW()","v":44439.89375289352},true,"=NOW()"]
[]
[null,"automateexcel.com/functions/isnontext-formula-excel"]
[]
[null,"Excel Boot Camp - Learn Excel Inside Excel"]

{"sheet":"Number Store as Text","index":3,"n_rows":7,"n_cols":3,"rows_kept":7,"cut":false,"hidden":false,"merged":[]}
["DATA","Result","Content _Column A"]
[{"$f":"10*15","v":150},{"$f":"ISNONTEXT(A2)","v":true},150]
["150",{"$f":"ISNONTEXT(A3)","v":false},{"$f":"\"'150\"","v":"'150"}]
[]
[null,"automateexcel.com/functions/isnontext-formula-excel"]
[]
[null,"Excel Boot Camp - Learn Excel Inside Excel"]

{"sheet":"IF-ISTEXT","index":4,"n_rows":11,"n_cols":3,"rows_kept":11,"cut":false,"hidden":false,"merged":[]}
["DATA","Result","Content _Column A"]
[{"$f":"TODAY()","v":"2021-08-31"},{"$f":"IF(ISNONTEXT(A2),\"non text\", \"text\")","v":"non text"},"=Today()"]
[150,{"$f":"IF(ISNONTEXT(A3),\"non text\", \"text\")","v":"non text"},150]
["150","text",{"$f":"\"'150\"","v":"'150"}]
["ABC","text","ABC"]
[false,"non text",false]
[{"$f":"NOW()","v":44439.89375289352},"non text","=NOW()"]
[]
[null,"automateexcel.com/functions/isnontext-formula-excel"]
[]
[null,"Excel Boot Camp - Learn Excel Inside Excel"]